bitfinex/quotes_ETHUSD_20251018
["timestamp","ask_amount","ask_price","bid_price","bid_amount"]
[1760798099466,0.001,3878.2,3878.1,2.68195602]
[1760798100464,0.001,3878.2,3878.1,2.57858229]
[1760798100662,0.4258,3878.2,3878.1,2.57858229]
[1760798101367,0.001,3878.2,3878.1,3.77290796]
[1760798101552,0.001,3878.2,3878.1,3.79869378]
[1760798101755,0.001,3878.2,3878.1,3.77290796]
[1760798102845,0.001,3878.2,3878.1,3.09430796]
[1760798103240,0.001,3878.2,3878.1,2.57858229]
[1760798105664,0.001,3878.2,3878.1,2.70738229]
[1760798105868,0.001,3878.2,3878.1,2.94088229]
[1760798106048,0.001,3878.2,3878.1,3.38738229]
[1760798107372,0.001,3878.2,3878.1,4.04676811]
[1760798107686,0.001,3878.2,3878.1,9.90166395]
[1760798107860,0.001,3878.2,3878.1,9.87587813]
[1760798108060,1e-08,3878.6,3878.5,2.57831635]
[1760798108257,0.001,3878.9,3878.8,18.48861094]
[1760798108460,0.001,3878.9,3878.8,20.49595794]
[1760798108658,0.001,3878.9,3878.8,23.57493747]
[1760798108878,0.001,3878.9,3878.8,23.80963747]
[1760798109079,0.001,3878.9,3878.8,23.49351947]
[1760798109426,0.001,3878.9,3878.8,18.33402547]
[1760798110287,0.001,3878.9,3878.8,24.79180947]
[1760798110586,0.001,3878.9,3878.8,23.99202747]
[1760798110987,0.001,3878.9,3878.8,20.31725247]
[1760798111385,0.001,3878.9,3878.8,18.42374047]
[1760798111564,0.001,3878.9,3878.8,16.68096147]
[1760798112495,0.001,3878.9,3878.8,21.95684047]
[1760798112873,0.001,3878.9,3878.8,19.23884047]
[1760798113206,0.001,3878.9,3878.8,18.17284047]
[1760798113414,0.001,3878.9,3878.8,8.38219647]
[1760798113577,0.001,3878.9,3878.8,10.56601294]
[1760798114378,0.001,3878.9,3878.8,20.94873794]
[1760798114599,0.001,3878.9,3878.8,8.35971694]
[1760798115007,0.001,3878.9,3878.8,7.91321694]
[1760798115174,0.001,3878.9,3878.8,8.35971694]
[1760798115379,0.001,3878.9,3878.8,9.71134063]
[1760798117501,0.001,3878.9,3878.8,9.26484063]
[1760798117678,0.001,3878.9,3878.8,6.65484063]
[1760798117978,0.3257,3878.9,3878.8,4.29324063]
[1760798118179,0.001,3878.9,3878.8,4.6953981]
[1760798118382,0.001,3878.9,3878.8,2.94161694]
[1760798118579,0.1,3878.9,3878.8,4.66961694]
[1760798118906,0.001,3878.9,3878.8,4.6953981]
[1760798119223,0.2255,3878.9,3878.8,4.66961694]
[1760798119380,0.327,3878.9,3878.8,4.66961694]
[1760798119880,0.327,3878.9,3878.8,2.94161694]
[1760798120213,0.327,3878.9,3878.8,2.70691694]
[1760798120586,0.2255,3878.9,3878.8,2.70691694]
[1760798120798,0.001,3878.9,3878.8,3.26812899]
[1760798123319,0.3247,3878.9,3878.3,2.57840518]
[1760798123624,0.3247,3878.9,3878.3,2.57844932]
[1760798123625,0.227,3878.4,3878.3,2.57844932]
[1760798124119,0.326,3878.4,3878.0,0.103378]
[1760798124320,0.326,3878.4,3878.1,2.57852535]
[1760798124629,0.099,3878.3,3877.9,2.57871017]
[1760798124817,0.227,3878.4,3878.2,2.5785158]
[1760798125018,0.227,3878.4,3877.5,2.38246]
[1760798125214,0.227,3878.4,3877.6,0.75714607]
[1760798125417,0.227,3878.4,3877.5,0.65446]
[1760798125418,0.099,3878.3,3877.5,2.57896836]
[1760798125618,0.099,3878.2,3877.6,2.57891225]
[1760798125825,0.099,3878.1,3877.6,2.57891225]
[1760798126023,0.099,3878.0,3877.6,2.57891225]
[1760798126214,0.227,3878.4,3877.6,2.57891225]
[1760798126419,0.099,3877.9,3877.6,2.57891225]
[1760798126616,0.099,3877.8,3877.6,2.57891225]
[1760798126812,0.099,3877.7,3877.6,2.57891225]
[1760798127318,0.099,3878.1,3877.6,3.11740806]
[1760798127519,0.099,3878.0,3877.7,2.57883546]
[1760798127715,0.227,3878.4,3877.5,2.5789233]
[1760798128023,0.227,3878.4,3877.3,0.227]
[1760798128024,0.099,3877.9,3877.3,0.227]
[1760798128190,0.099,3877.9,3877.8,2.57878178]
[1760798129326,0.099,3877.9,3877.3,0.227]
[1760798129490,0.227,3878.4,3877.4,2.57898689]
[1760798129491,0.099,3877.8,3877.4,2.57898689]
[1760798129690,0.099,3877.7,3877.4,2.57898689]
[1760798129890,0.099,3877.6,3877.5,2.5789813]
[1760798130091,0.099,3877.6,3876.8,0.002]
[1760798130332,0.099,3877.6,3876.8,0.39363]
[1760798130516,0.099,3877.6,3877.2,2.57913371]
[1760798130842,0.099,3877.5,3877.2,2.57913371]
[1760798131005,0.099,3877.4,3877.2,2.57913371]
[1760798131194,0.099,3877.4,3877.3,2.57911433]
[1760798132020,0.099,3877.4,3877.2,2.57917789]
[1760798132223,0.099,3877.4,3877.3,2.57911433]
[1760798132519,0.04494525,3877.9,3877.4,2.57904439]
[1760798132520,0.099,3877.7,3877.4,2.57904439]
[1760798132690,0.04494525,3877.9,3877.4,2.57904439]
[1760798132691,0.099,3877.6,3877.4,2.57904439]
[1760798133324,0.04494525,3877.9,3877.5,0.1288]
[1760798133892,0.04494525,3877.9,3877.7,2.57884316]
[1760798134225,0.099,3878.2,3877.8,2.70758178]
[1760798134399,0.227,3878.4,3877.8,2.70758178]
[1760798134595,0.14394189,3878.3,3878.1,0.1288]
[1760798134795,0.099,3878.3,3878.1,0.1288]
[1760798134996,0.099,3878.2,3878.1,0.1288]
[1760798137029,0.099,3878.2,3877.1,2.57923888]
[1760798137236,0.3558,3878.4,3877.7,0.1288]
[1760798137418,0.099,3878.1,3876.8,0.229]
[1760798137727,0.099,3878.0,3877.5,0.1288]
[1760798137897,0.099,3877.9,3877.5,0.1288]
[1760798138098,0.14394705,3877.8,3877.5,0.1288]
[1760798138293,0.099,3877.7,3877.5,0.1288]
[1760798138834,0.099,3877.6,3877.5,0.1288]
[1760798141235,0.099,3877.6,3877.3,0.002]
[1760798141404,0.099,3877.5,3877.3,0.002]
[1760798143703,0.099,3877.4,3877.3,0.002]
[1760798144410,0.14394998,3877.4,3877.3,0.002]
[1760798146719,0.04494998,3877.4,3877.3,0.002]
[1760798147919,0.14394998,3877.4,3877.3,0.002]
[1760798148641,0.04494998,3877.4,3877.3,0.002]
[1760798149730,0.04494998,3877.4,3877.3,0.4649]
[1760798150818,0.04494998,3877.4,3877.3,3.65495238]
[1760798151115,0.04494536,3877.9,3877.4,2.57898908]
[1760798151318,0.04494536,3877.9,3877.4,3.04188908]
[1760798151515,1.728,3878.2,3877.7,0.1288]
[1760798152938,1.728,3878.2,3877.7,0.5917]
[1760798153141,1.728,3878.2,3877.7,0.1288]
[1760798153342,1.827,3878.2,3877.7,0.1288]
[1760798153936,0.04494409,3878.1,3877.7,0.1288]
[1760798155213,0.04494409,3878.1,3877.7,0.5917]
[1760798155744,1.728,3878.2,3877.7,0.5917]
[1760798156334,1.827,3878.2,3877.7,0.1288]
[1760798157132,1.728,3878.2,3877.7,0.1288]
[1760798157642,1.728,3878.2,3877.7,0.5917]
[1760798158350,1.728,3878.2,3877.8,0.4629]
[1760798158551,1.728,3878.2,3878.0,0.1288]
[1760798158737,0.04494349,3878.1,3878.0,0.1288]
[1760798160252,0.04494349,3878.1,3877.4,0.4629]
[1760798160412,0.04494349,3878.1,3877.7,0.1288]
[1760798161536,0.04494349,3878.1,3877.7,0.5917]
[1760798163448,0.04494349,3878.1,3877.7,0.1288]
[1760798163950,0.04494349,3878.1,3878.0,0.1288]
[1760798164937,0.14524349,3878.1,3878.0,0.1288]
[1760798165949,0.14524349,3878.1,3877.7,0.1288]
[1760798166130,0.14524349,3878.1,3877.3,0.002]
[1760798166131,0.1003,3878.0,3877.5,0.1288]
[1760798166553,0.1003,3878.0,3877.3,0.002]
[1760798166554,0.1003,3877.9,3877.3,0.002]
[1760798166752,0.1288,3877.8,3877.3,0.002]
[1760798167156,0.1003,3877.7,3877.3,0.002]
[1760798168429,0.1003,3877.6,3877.3,0.002]
[1760798169424,0.14525175,3877.6,3877.3,0.002]
[1760798170842,0.04495175,3877.6,3877.3,0.002]
[1760798171048,0.1003,3877.5,3877.3,0.002]
[1760798171455,0.04495175,3877.6,3877.3,0.002]
[1760798171960,0.1003,3877.5,3877.3,0.002]
[1760798173633,0.04495175,3877.6,3877.3,0.002]
[1760798177599,0.14525175,3877.6,3877.3,0.002]
[1760798178484,0.04495175,3877.6,3877.4,0.4476]
[1760798178688,0.04495175,3877.6,3877.5,0.1288]
[1760798179898,0.04495175,3877.6,3877.5,0.5764]
[1760798180083,0.04495175,3877.6,3877.5,0.1288]
[1760798182907,0.04495175,3877.6,3877.3,0.002]
[1760798183573,0.04495175,3877.6,3877.4,0.4476]
[1760798183771,0.04495175,3877.6,3877.4,0.32575559]
[1760798183982,0.04495175,3877.6,3877.4,0.77335559]
[1760798184977,0.04495175,3877.6,3877.5,0.4476]
[1760798186598,0.40453277,3878.1,3877.5,0.47338981]
[1760798186805,6.39,3879.2,3877.5,0.47338981]
[1760798186969,0.04494231,3878.5,3878.2,2.57845975]
[1760798187170,1.9461,3879.1,3878.4,0.2288]
[1760798187670,0.2181,3879.1,3878.5,0.4476]
[1760798187870,1.9461,3879.1,3878.5,0.4476]
[1760798188389,1.9461,3879.1,3878.4,2.8071787]
[1760798188586,1.728,3879.1,3878.5,0.4476]
[1760798189066,1.8334,3879.1,3878.4,0.2288]
[1760798189266,1.8334,3879.1,3878.4,3.25477691]
[1760798189465,1.8334,3879.1,3878.4,2.80717691]
[1760798189667,1.8334,3879.1,3878.5,0.4476]
[1760798190287,0.04493671,3878.8,3878.5,0.4476]
[1760798190894,0.04493671,3878.8,3878.4,0.2288]
[1760798191070,0.04493671,3878.8,3878.5,3.02591635]
[1760798192790,0.04493671,3878.8,3878.5,3.15471635]
[1760798193504,0.001,3879.3,3878.5,3.15471635]
[1760798194704,0.1054,3879.4,3878.5,3.15471635]
[1760798197906,0.04493206,3879.1,3878.5,3.15471635]
[1760798198104,0.04493206,3879.1,3878.2,0.10336598]
[1760798198105,0.2176,3878.7,3878.2,0.10336598]
[1760798198307,0.1097,3879.0,3878.4,2.57837198]
[1760798198875,0.001,3879.0,3878.5,2.57831635]
[1760798199208,0.001,3879.0,3878.5,3.5711709]
[1760798202423,0.001,3879.0,3878.5,4.23055406]
[1760798202581,0.001,3879.0,3878.5,4.2047709]
[1760798203104,0.001,3879.0,3878.5,6.19121533]
[1760798203308,0.001,3879.0,3878.5,6.03612379]
[1760798205117,0.001,3879.0,3878.5,3.19992379]
[1760798206704,0.001,3879.0,3878.5,3.67452379]
[1760798207057,0.001,3879.0,3878.5,3.5711709]
[1760798207516,0.001,3879.0,3878.5,3.59695406]
[1760798208103,0.001,3879.0,3878.5,3.72575406]
[1760798208304,0.001,3879.0,3878.5,4.35935406]
[1760798209208,0.001,3879.0,3878.5,4.3335709]
[1760798211724,0.001,3879.0,3878.5,4.3355709]
[1760798213132,0.001,3879.0,3878.5,4.43891284]
[1760798213432,0.1048,3879.7,3878.5,4.43891284]
[1760798216338,0.1048,3879.5,3878.5,4.43891284]
[1760798217438,0.04492823,3879.8,3878.5,3.8609709]
[1760798217439,0.1048,3879.0,3878.5,3.8609709]
[1760798217936,0.1048,3879.3,3878.5,4.3355709]
[1760798218136,0.1048,3879.3,3878.5,4.8355709]
[1760798218507,0.1048,3879.1,3878.5,4.3609709]
[1760798218736,0.3223,3878.9,3878.5,4.3609709]
[1760798218938,0.2164,3878.9,3878.5,3.62435406]
[1760798219139,0.2164,3878.9,3878.5,3.5985709]
[1760798219856,0.2164,3878.9,3878.5,5.35235406]
[1760798220043,0.2164,3878.9,3878.5,3.5985709]
[1760798221434,0.001,3878.9,3878.5,4.25795406]
[1760798221750,0.001,3878.9,3878.5,4.2321709]
[1760798222411,0.3224,3878.9,3878.5,4.2321709]
[1760798222616,0.1012,3878.6,3878.5,3.5985709]
[1760798223181,0.1012,3878.6,3878.5,3.08031635]
[1760798224638,0.001,3878.6,3878.5,3.08031635]
[1760798224821,0.1012,3878.6,3878.5,3.10609951]
[1760798225016,0.001,3878.6,3878.5,3.08031635]
[1760798225215,0.001,3878.6,3878.5,4.18851635]
[1760798225416,0.001,3878.6,3878.5,5.1518109]
[1760798226078,0.001,3878.6,3878.5,4.6772109]
[1760798226245,0.001,3878.6,3878.5,5.1289109]
[1760798228581,0.001,3878.6,3878.5,7.7379109]
[1760798229077,0.001,3878.6,3878.5,7.8667109]
[1760798230780,0.1012,3878.6,3878.5,4.1724109]
[1760798230978,0.1012,3878.6,3878.5,3.20911635]
[1760798231179,0.1012,3878.6,3878.5,0.6308]
[1760798231678,0.1012,3878.6,3878.5,3.20911635]
[1760798231850,0.1012,3878.6,3878.5,0.6308]
[1760798232050,0.1012,3878.6,3878.5,3.20911635]
[1760798232475,0.001,3878.6,3878.5,3.65907143]
[1760798232779,0.001,3878.6,3878.5,12.23854143]
[1760798233080,0.001,3878.6,3878.5,10.01505943]
[1760798233985,0.001,3878.6,3878.5,6.24187143]
[1760798234158,0.001,3878.6,3878.5,6.02067143]
[1760798234358,0.001,3878.6,3878.5,8.62967143]
[1760798234560,0.001,3878.6,3878.5,8.73301765]
[1760798234758,0.001,3878.6,3878.5,8.62967143]
[1760798235967,0.001,3878.6,3878.5,9.08137143]
[1760798236487,0.2164306,3879.9,3879.7,2.57749881]
[1760798236658,0.2164306,3879.9,3879.4,2.57766796]
[1760798236860,0.2164306,3879.9,3879.5,2.57763175]
[1760798237284,0.2164306,3879.9,3878.6,2.57824988]
[1760798237472,0.2164306,3879.9,3879.7,2.57746401]
[1760798237860,0.2164306,3879.9,3879.4,2.57765727]
[1760798238062,0.2164306,3879.9,3878.7,3.25013597]
[1760798238288,0.2164306,3879.9,3879.3,2.57773462]
[1760798238481,0.2164306,3879.9,3879.4,2.57770694]
[1760798238683,0.001,3879.8,3879.5,2.57765022]
[1760798238882,0.001,3879.7,3879.5,2.57765022]
[1760798239077,0.2164306,3879.9,3879.5,2.57765022]
[1760798239285,0.2164306,3879.9,3879.6,2.57758293]
[1760798239484,0.2164306,3879.9,3879.4,2.57767161]
[1760798239786,0.001,3879.8,3879.3,2.57772091]
[1760798240097,0.001,3879.7,3879.5,2.57761438]
[1760798240295,0.001,3879.6,3878.5,1.08075508]
[1760798240595,0.092,3879.5,3879.0,2.5779367]
[1760798240776,0.092,3879.4,3879.1,2.57791057]
[1760798240988,0.04492884,3879.8,3879.1,2.57791057]
[1760798241204,0.092,3879.3,3879.1,2.57791057]
[1760798241389,0.04492884,3879.8,3879.1,2.57791057]
[1760798241713,0.092,3879.7,3879.1,2.57790536]
[1760798241887,0.092,3879.6,3879.1,2.57790536]
[1760798242093,0.04492884,3879.8,3879.1,2.57790536]
[1760798242299,0.092,3879.5,3879.0,2.57795112]
[1760798242611,0.04492884,3879.8,3879.3,2.57777277]
[1760798242787,0.04492884,3879.8,3879.5,0.1288]
[1760798242987,0.092,3879.7,3879.5,0.1288]
[1760798243219,0.092,3879.6,3879.1,2.57787587]
[1760798243400,0.092,3879.5,3879.2,0.1288]
[1760798243604,0.092,3879.4,3879.2,0.1288]
[1760798243774,0.092,3879.3,3879.2,0.1288]
[1760798244582,0.2164306,3879.9,3879.2,0.68304981]
[1760798244809,0.2164306,3879.9,3879.8,2.57745244]
[1760798245518,0.092,3880.2,3879.7,0.1288]
[1760798245680,0.0932,3880.1,3879.9,2.70615168]
[1760798246020,0.0932,3880.0,3879.9,0.1288]
[1760798248380,0.0932,3880.0,3879.7,0.1288]
[1760798248621,0.207,3879.8,3879.7,0.1288]
[1760798248797,0.3013,3879.8,3879.7,0.1288]
[1760798250092,0.001,3879.9,3879.7,2.70626224]
[1760798251513,0.001,3879.9,3879.8,2.57745244]
[1760798253020,0.001,3879.9,3879.8,3.15100621]
[1760798253391,0.001,3879.9,3879.8,3.60270621]
[1760798257494,0.001,3879.9,3879.8,4.26208073]
[1760798258627,0.001,3879.9,3879.8,4.23630621]
[1760798258825,0.001,3879.9,3879.8,4.26208073]
[1760798260223,0.001,3879.9,3879.8,5.96430621]
[1760798261032,0.001,3879.9,3879.8,6.09101823]
[1760798261751,0.001,3879.9,3879.8,5.96430621]
[1760798265535,0.001,3879.9,3879.8,7.48700621]
[1760798265734,0.001,3879.9,3879.8,7.93520621]
[1760798265936,0.001,3879.9,3879.8,8.56880621]
[1760798266622,0.001,3879.9,3879.8,8.12060621]
[1760798266822,0.001,3879.9,3879.8,8.69760621]
[1760798269755,0.001,3879.9,3879.8,15.39973021]
[1760798270868,0.001,3879.9,3879.8,11.41560621]
[1760798274683,0.001,3879.9,3879.8,10.96740621]
[1760798275050,0.001,3879.9,3879.8,11.41560621]
[1760798275863,0.001,3879.9,3879.8,10.96740621]
[1760798276546,0.001,3879.9,3879.8,11.41560621]
[1760798276888,0.001,3879.9,3879.8,5.64140621]
[1760798277058,0.1252,3879.9,3879.8,3.27980621]
[1760798277251,0.1252,3879.9,3879.8,5.88780621]
[1760798278074,0.1252,3879.9,3879.8,6.52140621]
[1760798278873,0.1252,3879.9,3879.8,3.27980621]
[1760798279198,0.001,3879.9,3879.8,3.27980621]
[1760798279856,0.001,3879.9,3879.8,3.30558073]
[1760798280750,0.001,3879.9,3879.8,3.93918073]
[1760798281447,0.001,3879.9,3879.8,6.11538073]
[1760798281677,0.001,3879.9,3879.8,6.08960621]
[1760798284291,0.001,3879.9,3879.8,5.64140621]
[1760798285088,0.001,3879.9,3879.8,8.24940621]
[1760798285476,0.001,3879.9,3879.8,8.50790621]
[1760798285667,0.001,3879.9,3879.8,8.24940621]
[1760798286279,0.001,3879.9,3879.8,8.68030621]
[1760798286787,0.001,3879.9,3879.8,11.39830621]
[1760798295503,0.001,3879.9,3879.8,15.70629599]
[1760798296402,0.001,3879.9,3879.8,19.49133099]
[1760798296992,0.001,3879.9,3879.8,19.19592199]
[1760798297227,0.001,3879.9,3879.8,15.59674599]
[1760798297395,0.001,3879.9,3879.8,20.34706899]
[1760798298102,0.001,3879.9,3879.8,19.86140199]
[1760798298401,0.001,3879.9,3879.8,19.65046599]
[1760798299470,0.001,3879.9,3879.8,19.17385499]
[1760798300317,0.001,3879.9,3879.8,16.86085499]
[1760798300507,0.001,3879.9,3879.8,18.54587499]
[1760798300671,0.001,3879.9,3879.8,17.05187499]
[1760798301495,0.001,3879.9,3879.8,18.57848399]
[1760798301695,0.001,3879.9,3879.8,18.35480399]
[1760798302723,0.001,3879.9,3879.8,19.14557399]
[1760798303130,0.001,3879.9,3879.8,8.46270199]
[1760798303318,0.001,3879.9,3879.8,10.96640621]
[1760798303826,0.001,3879.9,3879.8,8.24840621]
[1760798304393,0.1023,3879.9,3879.8,8.24840621]
[1760798304819,0.317,3879.9,3879.8,8.24840621]
[1760798306002,0.001,3880.3,3880.2,3.21078674]
[1760798306203,0.001,3880.3,3880.2,8.42619221]
[1760798306502,0.001,3880.3,3880.2,5.06758674]
[1760798306837,0.001,3880.3,3880.2,4.43398674]
[1760798309433,0.001,3880.3,3880.2,2.70598674]
[1760798309635,0.001,3880.3,3880.2,2.7317586]
[1760798309802,0.001,3880.3,3880.2,2.70598674]
[1760798310004,0.001,3880.3,3880.2,2.7317586]
[1760798310204,0.001,3880.3,3880.2,2.70598674]
[1760798312734,0.001,3880.3,3880.2,2.7317586]
[1760798312928,0.001,3880.3,3880.2,6.02941221]
[1760798319563,0.001,3880.3,3880.2,5.39581221]
[1760798323749,0.001,3880.3,3880.2,6.46541221]
[1760798325160,0.001,3880.3,3880.2,6.02941221]
[1760798326368,0.001,3880.3,3880.2,8.00181221]
[1760798332369,0.001,3880.3,3880.2,8.23091221]
[1760798332776,0.001,3880.3,3880.2,8.86451221]
[1760798333146,0.1811,3880.8,3880.7,2.57685469]
[1760798337277,0.001,3881.1,3881.0,2.5766555]
[1760798337446,0.1338,3881.1,3881.0,2.5766555]
[1760798337776,0.001,3881.1,3881.0,2.5766555]
[1760798338079,0.001,3881.1,3881.0,3.34968007]
[1760798342330,0.001,3881.1,3881.0,4.00904662]
[1760798342504,0.001,3881.1,3881.0,18.30334762]
[1760798342667,0.001,3881.1,3881.0,18.92908107]
[1760798342862,0.001,3881.1,3881.0,6.79878007]
[1760798343160,0.001,3881.1,3881.0,9.25732807]
[1760798343363,0.001,3881.1,3881.0,10.97114807]
[1760798343798,0.001,3881.1,3881.0,11.49122616]
[1760798344472,0.001,3881.1,3881.0,17.56045516]
[1760798344894,0.001,3881.1,3881.0,16.65946216]
[1760798345202,0.001,3881.1,3881.0,14.48884916]
[1760798345397,0.001,3881.1,3881.0,12.56230116]
[1760798345571,0.001,3881.1,3881.0,10.05365816]
[1760798346114,0.001,3881.1,3881.0,7.48155816]
[1760798346312,0.001,3881.1,3881.0,10.08655816]
[1760798348815,0.001,3881.1,3881.0,9.09658007]
[1760798350418,0.001,3881.1,3881.0,9.56648007]
[1760798351221,0.001,3881.1,3881.0,9.09658007]
[1760798352413,0.001,3881.1,3881.0,9.56648007]
[1760798354039,0.34096495,3881.1,3880.8,0.002]
[1760798354215,0.1348,3881.0,3880.8,0.002]
[1760798354894,0.0841,3880.9,3880.8,0.002]
[1760798355095,0.601,3881.1,3880.8,2.57878829]
[1760798355402,0.001,3881.1,3881.0,2.5766555]
[1760798355727,0.0525,3881.1,3881.0,2.5766555]
[1760798357025,0.001,3881.1,3881.0,2.5766555]
[1760798359629,0.001,3881.1,3881.0,2.60242205]
[1760798359822,0.001,3881.1,3881.0,2.5766555]
[1760798361339,0.001,3881.1,3881.0,3.42575602]
[1760798361528,0.001,3881.1,3881.0,3.86988947]
[1760798361940,0.001,3881.1,3881.0,6.47788947]
[1760798362405,0.001,3881.1,3881.0,6.8227929]
[1760798364041,0.001,3881.1,3881.0,6.13678947]
[1760798364336,0.001,3881.1,3881.0,3.99868947]
[1760798364519,0.001,3881.1,3881.0,6.60668947]
[1760798365542,0.001,3881.1,3881.0,6.9515929]
[1760798366311,0.001,3881.1,3881.0,9.3131929]
[1760798366510,0.001,3881.1,3881.0,21.5141339]
[1760798366738,0.001,3881.1,3881.0,20.6600839]
[1760798367414,0.3,3881.6,3881.5,4.93792358]
[1760798367415,1e-08,3881.6,3881.5,4.93792358]
[1760798367728,1e-08,3881.6,3881.5,21.28805017]
[1760798367936,1e-08,3881.6,3881.5,20.87925294]
[1760798368141,1e-08,3881.6,3881.5,21.01015294]
[1760798368341,250.3,3884.0,3883.2,2.57519571]
[1760798368545,0.0523,3883.6,3883.2,2.57519571]
[1760798369112,250.0,3884.0,3883.2,2.87519571]
[1760798369363,250.0,3884.0,3883.2,3.62747044]
[1760798369518,250.04487604,3884.0,3883.2,3.62747044]
[1760798369722,0.0523,3883.9,3883.2,3.62747044]
[1760798372233,0.301,3883.3,3883.2,3.62747044]
[1760798373054,0.301,3883.3,3883.2,2.87519571]
[1760798374321,0.301,3883.3,3883.2,5.67549571]
[1760798374755,1e-08,3883.3,3883.2,5.67549571]
[1760798374938,207.99703047,3884.0,3883.9,4.93633158]
[1760798375265,207.99703047,3884.0,3883.9,7.35343158]
[1760798375422,207.99703047,3884.0,3883.9,7.98703158]
[1760798375742,1e-08,3884.0,3883.9,12.14731558]
[1760798375916,1e-08,3884.0,3883.9,14.1300951]
[1760798376325,0.1819,3886.0,3884.9,0.6336]
[1760798376558,0.1758,3887.0,3886.0,2.57334019]
[1760798376722,0.0526,3886.9,3886.0,5.18734019]
[1760798377062,0.0526,3886.7,3886.0,5.48734019]
[1760798377262,0.3,3887.4,3886.0,6.99364144]
[1760798377477,0.3,3887.4,3886.2,0.6336]
[1760798377760,0.1005,3887.3,3886.4,1.728]
[1760798377920,0.1005,3887.3,3886.4,2.62]
[1760798378120,0.1005,3887.2,3886.4,2.62]
[1760798378531,0.3,3887.4,3886.4,2.62]
[1760798378730,1.22877525,3890.9,3886.4,2.62]
[1760798378731,0.0448309,3888.5,3888.4,2.57175187]
[1760798378951,0.0448309,3888.5,3888.4,3.20535187]
[1760798379170,0.8878841,3889.1,3888.0,2.62]
[1760798379327,0.8878841,3889.1,3887.4,0.4387]
[1760798379328,0.1004,3888.9,3887.4,0.6336]
[1760798379538,0.1004,3888.9,3888.2,2.57188416]
[1760798379738,0.1004,3888.9,3888.4,2.57175112]
[1760798379952,0.1004,3888.8,3888.1,0.77334237]
[1760798380153,0.1004,3888.8,3888.4,2.57174514]
[1760798380366,0.1004,3888.7,3888.3,2.57176179]
[1760798380540,0.1004,3888.7,3888.4,2.57174903]
[1760798380741,0.1004,3888.6,3888.1,0.77334237]
[1760798380941,0.1004,3888.5,3888.1,0.77334237]
[1760798381167,0.1004,3888.4,3888.1,0.77334237]
[1760798381448,0.1004,3888.3,3886.7,2.626]
[1760798381756,0.099,3888.2,3887.5,0.1293]
[1760798382162,0.8878841,3889.1,3887.5,0.1293]
[1760798382163,0.0865,3887.6,3887.5,0.1293]
[1760798382475,0.0865,3887.9,3886.6,1.728]
[1760798382648,0.0865,3887.9,3887.6,2.57224224]
[1760798382984,0.1855,3887.9,3887.5,2.57228248]
[1760798383140,0.099,3887.8,3887.2,0.10312853]
[1760798383678,0.099,3887.8,3885.2,0.2275]
[1760798383679,0.6336,3887.6,3885.2,0.2275]
[1760798383864,0.101,3887.5,3885.9,2.57335678]
[1760798384076,0.101,3887.4,3885.5,0.6336]
[1760798384259,0.101,3887.3,3885.8,2.57341878]
[1760798384575,0.101,3887.2,3885.7,2.57353887]
[1760798384760,0.1502,3885.9,3885.2,0.2275]
[1760798384965,0.103,3886.4,3885.2,0.2275]
[1760798385132,0.103,3886.4,3885.2,0.97879706]
[1760798385340,0.103,3886.4,3885.8,2.5734612]
[1760798385668,0.1497,3885.9,3885.4,2.57369404]
[1760798385975,0.2532,3885.9,3885.5,2.5736508]
[1760798386177,0.2532,3885.9,3885.6,2.57360036]
[1760798386767,0.2532,3885.9,3885.8,0.128]
[1760798388094,0.1497,3885.9,3885.8,0.128]
[1760798389092,0.2532,3885.9,3885.5,0.128]
[1760798389393,0.2532,3885.9,3884.1,2.57458438]
[1760798389394,0.1035,3885.8,3885.2,0.128]
[1760798389599,0.1035,3885.8,3883.6,0.4387]
[1760798389800,0.1035,3885.7,3883.6,0.4387]
[1760798389999,0.128,3885.3,3884.7,0.128]
[1760798390318,7.3196,3885.0,3882.6,0.2275]
[1760798390599,0.2196,3884.9,3883.9,0.002]
[1760798391099,0.0448737,3884.5,3883.9,0.002]
[1760798391590,0.099,3884.4,3883.9,0.002]
[1760798392092,0.099,3884.3,3883.9,0.002]
[1760798392291,0.0448737,3884.5,3884.0,2.57465712]
[1760798392481,0.0448737,3884.5,3883.9,2.57667532]
[1760798392677,0.0448737,3884.5,3884.1,2.57455904]
[1760798392878,0.0448737,3884.5,3883.9,0.51715258]
[1760798392879,0.0448737,3884.5,3884.2,2.57451954]
[1760798393195,0.0448737,3884.5,3884.2,2.5745262]
[1760798393393,0.0448737,3884.5,3884.1,0.2275]
[1760798393691,0.2489,3885.9,3884.8,2.57413418]
[1760798393891,0.04486099,3884.9,3884.8,2.57413418]
[1760798394094,0.2489,3885.9,3884.4,2.57439846]
[1760798394259,0.0992,3885.8,3884.2,2.57448043]
[1760798394461,0.0992,3885.8,3884.3,0.4387]
[1760798394697,0.0992,3885.8,3884.8,2.57412749]
[1760798394870,0.0992,3885.8,3884.3,0.4387]
[1760798395103,0.0992,3885.8,3884.7,2.57414572]
[1760798395303,0.0992,3885.8,3884.6,2.5742534]
[1760798395597,0.0992,3885.8,3884.1,0.2275]
[1760798395805,0.0992,3885.8,3883.9,0.002]
[1760798395806,0.0992,3885.7,3883.9,0.002]
[1760798396029,0.0992,3885.7,3884.0,2.57466529]
[1760798396319,0.0992,3885.6,3883.9,0.002]
[1760798396486,0.0992,3885.6,3884.3,2.57444703]
[1760798396684,0.0992,3885.5,3884.0,2.57461155]
[1760798396889,0.0992,3885.4,3884.1,0.2275]
[1760798397212,0.04486542,3885.2,3884.0,2.57461715]
[1760798397410,0.04486542,3885.2,3884.1,0.2275]
[1760798397723,0.0992,3885.1,3883.9,2.57668295]